[Event "Titled Tuesday Blitz March 21 Early 2023"]
[White "Popov, Mikhail"]
[Black "Klepikov, Nikita"]
[WhiteFideId "4146182"]
[BlackFideId "24145220"]
[WhiteElo "2270"]
[BlackElo "2025"]
[Result "1-0"]
[Round "07"]
[TimeControl "180+2"]
[Date "2023.03.21"]
[WhiteClock "0:00:56"]
[BlackClock "0:00:06"]

1. d4 {[%clk 0:03:00]}  Nf6 {[%clk 0:03:00]} 2. Nf3 {[%clk 0:03:00]}  d6 {[%clk 0:02:59]} 3. Bg5 {[%clk 0:02:59]}  Ne4 {[%clk 0:02:51]} 4. Bh4 {[%clk 0:02:58]}  c5 {[%clk 0:02:51]} 5. c3 {[%clk 0:02:57]}  cxd4 {[%clk 0:02:37]} 6. cxd4 {[%clk 0:02:56]}  g5 {[%clk 0:02:29]} 7. Bg3 {[%clk 0:02:49]}  Qa5+ {[%clk 0:02:24]} 8. Nfd2 {[%clk 0:02:23]}  Bg7 {[%clk 0:01:57]} 9. e3 {[%clk 0:02:22]}  O-O {[%clk 0:01:28]} 10. Bd3 {[%clk 0:02:21]}  Bf5 {[%clk 0:01:12]} 11. Qe2 {[%clk 0:01:57]}  Nc6 {[%clk 0:01:06]} 12. O-O {[%clk 0:01:56]}  Nxg3 {[%clk 0:00:59]} 13. hxg3 {[%clk 0:01:55]}  Bxd3 {[%clk 0:00:58]} 14. Qxd3 {[%clk 0:01:56]}  Nb4 {[%clk 0:00:56]} 15. Qb3 {[%clk 0:01:54]}  Rac8 {[%clk 0:00:55]} 16. Nc3 {[%clk 0:01:52]}  g4 {[%clk 0:00:49]} 17. a3 {[%clk 0:01:26]}  Nd3 {[%clk 0:00:43]} 18. Nd5 {[%clk 0:01:14]}  Qxd2 {[%clk 0:00:21]} 19. Nxe7+ {[%clk 0:01:11]}  Kh8 {[%clk 0:00:19]} 20. Nxc8 {[%clk 0:01:12]}  Nxb2 {[%clk 0:00:06]} 21. Nxd6 {[%clk 0:00:56]} 1-0


[Site "https://www.chess.com"]

[Event "Titled Tuesday Blitz March 21 Early 2023"]
[White "Berezin, Viktor"]
[Black "Lorenzo De La Riva, Lazaro"]
[WhiteFideId "14107872"]
[BlackFideId "2268809"]
[WhiteElo "2310"]
[BlackElo "2294"]
[Result "1-0"]
[Round "07"]
[TimeControl "180+2"]
[Date "2023.03.21"]
[WhiteClock "0:00:28"]
[BlackClock "0:00:03"]

1. d4 {[%clk 0:02:55]}  Nf6 {[%clk 0:02:59]} 2. c4 {[%clk 0:02:56]}  c5 {[%clk 0:02:58]} 3. d5 {[%clk 0:02:55]}  b5 {[%clk 0:02:59]} 4. Qc2 {[%clk 0:02:56]}  b4 {[%clk 0:02:58]} 5. e4 {[%clk 0:02:55]}  d6 {[%clk 0:02:57]} 6. a3 {[%clk 0:02:56]}  a5 {[%clk 0:02:52]} 7. f4 {[%clk 0:02:50]}  g6 {[%clk 0:02:49]} 8. e5 {[%clk 0:02:46]}  dxe5 {[%clk 0:02:32]} 9. fxe5 {[%clk 0:02:47]}  Ng4 {[%clk 0:02:33]} 10. Nf3 {[%clk 0:02:46]}  Bg7 {[%clk 0:02:32]} 11. Bf4 {[%clk 0:02:46]}  Nd7 {[%clk 0:02:26]} 12. e6 {[%clk 0:02:24]}  fxe6 {[%clk 0:02:27]} 13. dxe6 {[%clk 0:02:25]}  Ndf6 {[%clk 0:01:53]} 14. h3 {[%clk 0:02:20]}  Nh6 {[%clk 0:01:52]} 15. Qa4+ {[%clk 0:02:19]}  Kf8 {[%clk 0:01:49]} 16. Qc6 {[%clk 0:02:07]}  Ra6 {[%clk 0:01:45]} 17. Qxc5 {[%clk 0:02:07]}  Rxe6+ {[%clk 0:01:45]} 18. Be2 {[%clk 0:02:07]}  Ne4 {[%clk 0:01:41]} 19. Qa7 {[%clk 0:01:41]}  Nf5 {[%clk 0:01:01]} 20. O-O {[%clk 0:01:40]}  Bf6 {[%clk 0:00:54]} 21. axb4 {[%clk 0:01:37]}  axb4 {[%clk 0:00:53]} 22. Ra5 {[%clk 0:01:30]}  Kg7 {[%clk 0:00:51]} 23. Rd5 {[%clk 0:01:26]}  Qe8 {[%clk 0:00:41]} 24. Be5 {[%clk 0:01:02]}  Neg3 {[%clk 0:00:37]} 25. Re1 {[%clk 0:00:59]}  Bxe5 {[%clk 0:00:29]} 26. Nxe5 {[%clk 0:00:54]}  Rf8 {[%clk 0:00:22]} 27. Bf3 {[%clk 0:00:54]}  h5 {[%clk 0:00:17]} 28. Nd2 {[%clk 0:00:53]}  h4 {[%clk 0:00:16]} 29. Ne4 {[%clk 0:00:47]}  Nxe4 {[%clk 0:00:12]} 30. Bxe4 {[%clk 0:00:47]}  Ng3 {[%clk 0:00:13]} 31. Bf3 {[%clk 0:00:46]}  Rf5 {[%clk 0:00:12]} 32. Qd4 {[%clk 0:00:46]}  Kh7 {[%clk 0:00:12]} 33. Qxh4+ {[%clk 0:00:46]}  Nh5 {[%clk 0:00:11]} 34. Bg4 {[%clk 0:00:40]}  Qf8 {[%clk 0:00:05]} 35. Bxf5 {[%clk 0:00:38]}  Qxf5 {[%clk 0:00:06]} 36. Rf1 {[%clk 0:00:32]}  Qe4 {[%clk 0:00:02]} 37. Qxe4 {[%clk 0:00:31]}  Ng3 {[%clk 0:00:01]} 38. Qh4+ {[%clk 0:00:31]}  Kg8 {[%clk 0:00:02]} 39. Qxg3 {[%clk 0:00:31]}  Kg7 {[%clk 0:00:02]} 40. Nxg6 {[%clk 0:00:30]}  Kh7 {[%clk 0:00:03]} 41. Rh5+ {[%clk 0:00:30]}  Kg7 {[%clk 0:00:03]} 42. Ne5+ {[%clk 0:00:28]} 1-0


[Site "https://www.chess.com"]

[Event "Titled Tuesday Blitz March 21 Early 2023"]
[White "Richter, Nils"]
[Black "TigranHH"]
[WhiteFideId "12990809"]
[WhiteElo "2381"]
[BlackElo "2306"]
[Result "1-0"]
[Round "07"]
[TimeControl "180+2"]
[Date "2023.03.21"]
[WhiteClock "0:00:29"]
[BlackClock "0:00:12"]

1. e4 {[%clk 0:03:00]}  c6 {[%clk 0:02:54]} 2. Nf3 {[%clk 0:03:00]}  d5 {[%clk 0:02:53]} 3. d3 {[%clk 0:03:01]}  g6 {[%clk 0:02:51]} 4. e5 {[%clk 0:03:00]}  Bg7 {[%clk 0:02:51]} 5. h3 {[%clk 0:02:59]}  Nh6 {[%clk 0:02:50]} 6. d4 {[%clk 0:02:57]}  O-O {[%clk 0:02:48]} 7. Bd3 {[%clk 0:02:56]}  f6 {[%clk 0:02:48]} 8. O-O {[%clk 0:02:53]}  Nf7 {[%clk 0:02:41]} 9. Re1 {[%clk 0:02:51]}  Na6 {[%clk 0:02:33]} 10. c3 {[%clk 0:02:49]}  Nc7 {[%clk 0:02:33]} 11. Bf4 {[%clk 0:02:48]}  Ne6 {[%clk 0:02:31]} 12. Bg3 {[%clk 0:02:46]}  Bd7 {[%clk 0:02:17]} 13. exf6 {[%clk 0:02:46]}  exf6 {[%clk 0:02:17]} 14. Nbd2 {[%clk 0:02:45]}  Neg5 {[%clk 0:02:05]} 15. Qc2 {[%clk 0:02:41]}  f5 {[%clk 0:01:59]} 16. Nxg5 {[%clk 0:02:23]}  Nxg5 {[%clk 0:01:53]} 17. Be5 {[%clk 0:02:15]}  f4 {[%clk 0:01:46]} 18. h4 {[%clk 0:01:57]}  Ne6 {[%clk 0:01:40]} 19. Nf3 {[%clk 0:01:54]}  Bf6 {[%clk 0:01:24]} 20. Bxf6 {[%clk 0:01:50]}  Qxf6 {[%clk 0:01:24]} 21. Re5 {[%clk 0:01:50]}  Ng7 {[%clk 0:01:15]} 22. Rae1 {[%clk 0:01:48]}  Rae8 {[%clk 0:01:15]} 23. c4 {[%clk 0:01:45]}  Bg4 {[%clk 0:01:09]} 24. Ng5 {[%clk 0:01:38]}  h6 {[%clk 0:00:54]} 25. Bxg6 {[%clk 0:01:32]}  hxg5 {[%clk 0:00:29]} 26. Bxe8 {[%clk 0:01:30]}  gxh4 {[%clk 0:00:26]} 27. Qg6 {[%clk 0:01:25]}  f3 {[%clk 0:00:19]} 28. Qxf6 {[%clk 0:01:19]}  Rxf6 {[%clk 0:00:18]} 29. cxd5 {[%clk 0:01:16]}  cxd5 {[%clk 0:00:18]} 30. Ba4 {[%clk 0:01:07]}  fxg2 {[%clk 0:00:18]} 31. Kxg2 {[%clk 0:01:02]}  Bf3+ {[%clk 0:00:18]} 32. Kh2 {[%clk 0:00:57]}  Be4 {[%clk 0:00:19]} 33. Re2 {[%clk 0:00:51]}  Rg6 {[%clk 0:00:16]} 34. f4 {[%clk 0:00:46]}  Rg3 {[%clk 0:00:15]} 35. Bb3 {[%clk 0:00:43]}  Rd3 {[%clk 0:00:12]} 36. R5xe4 {[%clk 0:00:29]} 1-0


[Site "https://www.chess.com"]

[Event "Titled Tuesday Blitz March 21 Early 2023"]
[White "The_Sherman_Variation"]
[Black "Pniaczek, Marek"]
[BlackFideId "21800421"]
[WhiteElo "2549"]
[BlackElo "2138"]
[Result "1/2-1/2"]
[Round "07"]
[TimeControl "180+2"]
[Date "2023.03.21"]
[WhiteClock "0:00:22"]
[BlackClock "0:00:06"]

1. g3 {[%clk 0:03:00]}  Nf6 {[%clk 0:02:58]} 2. Bg2 {[%clk 0:03:01]}  d5 {[%clk 0:02:59]} 3. Nf3 {[%clk 0:03:01]}  Bf5 {[%clk 0:02:58]} 4. O-O {[%clk 0:03:02]}  h6 {[%clk 0:02:58]} 5. d3 {[%clk 0:03:01]}  c6 {[%clk 0:02:57]} 6. Re1 {[%clk 0:03:01]}  e6 {[%clk 0:02:57]} 7. b3 {[%clk 0:03:02]}  Nbd7 {[%clk 0:02:56]} 8. Bb2 {[%clk 0:03:03]}  Be7 {[%clk 0:02:56]} 9. Nbd2 {[%clk 0:03:03]}  O-O {[%clk 0:02:56]} 10. e4 {[%clk 0:03:04]}  Bh7 {[%clk 0:02:56]} 11. Qe2 {[%clk 0:03:01]}  Qc7 {[%clk 0:02:53]} 12. h3 {[%clk 0:02:55]}  a5 {[%clk 0:02:45]} 13. a4 {[%clk 0:02:53]}  Rfe8 {[%clk 0:02:45]} 14. Nh2 {[%clk 0:02:50]}  Bf8 {[%clk 0:02:34]} 15. f4 {[%clk 0:02:47]}  e5 {[%clk 0:02:31]} 16. f5 {[%clk 0:02:41]}  Rad8 {[%clk 0:02:11]} 17. g4 {[%clk 0:02:38]}  dxe4 {[%clk 0:02:02]} 18. dxe4 {[%clk 0:02:38]}  Nc5 {[%clk 0:02:02]} 19. h4 {[%clk 0:02:31]}  h5 {[%clk 0:01:43]} 20. g5 {[%clk 0:02:25]}  Ng4 {[%clk 0:01:43]} 21. Nxg4 {[%clk 0:02:22]}  hxg4 {[%clk 0:01:44]} 22. Nc4 {[%clk 0:02:21]}  b5 {[%clk 0:01:35]} 23. Ne3 {[%clk 0:02:05]}  g3 {[%clk 0:01:34]} 24. Qg4 {[%clk 0:01:57]}  g6 {[%clk 0:01:28]} 25. h5 {[%clk 0:01:49]}  Rd2 {[%clk 0:01:15]} 26. Bc3 {[%clk 0:01:42]}  Rd7 {[%clk 0:01:05]} 27. Qxg3 {[%clk 0:01:18]}  bxa4 {[%clk 0:00:57]} 28. bxa4 {[%clk 0:01:15]}  Na6 {[%clk 0:00:49]} 29. Nc4 {[%clk 0:01:01]}  gxf5 {[%clk 0:00:41]} 30. g6 {[%clk 0:00:56]}  fxg6 {[%clk 0:00:41]} 31. hxg6 {[%clk 0:00:57]}  Bc5+ {[%clk 0:00:40]} 32. Kh1 {[%clk 0:00:53]}  Rg7 {[%clk 0:00:16]} 33. gxh7+ {[%clk 0:00:52]}  Kh8 {[%clk 0:00:17]} 34. Bxe5 {[%clk 0:00:37]}  Rxe5 {[%clk 0:00:16]} 35. Qxe5 {[%clk 0:00:38]}  Qxe5 {[%clk 0:00:15]} 36. Nxe5 {[%clk 0:00:39]}  Rxh7+ {[%clk 0:00:15]} 37. Bh3 {[%clk 0:00:40]}  Rxh3+ {[%clk 0:00:15]} 38. Kg2 {[%clk 0:00:40]}  Rc3 {[%clk 0:00:15]} 39. exf5 {[%clk 0:00:35]}  Rxc2+ {[%clk 0:00:15]} 40. Kf3 {[%clk 0:00:34]}  Bd4 {[%clk 0:00:13]} 41. Ke4 {[%clk 0:00:22]}  Bxa1 {[%clk 0:00:11]} 42. Rxa1 {[%clk 0:00:22]}  Nc5+ {[%clk 0:00:11]} 43. Kf4 {[%clk 0:00:22]}  Rf2+ {[%clk 0:00:09]} 44. Kg5 {[%clk 0:00:22]}  Ne4+ {[%clk 0:00:08]} 45. Kg6 {[%clk 0:00:22]}  Rg2+ {[%clk 0:00:08]} 46. Kf7 {[%clk 0:00:22]}  Nd6+ {[%clk 0:00:07]} 47. Ke6 {[%clk 0:00:22]}  Ne4 {[%clk 0:00:05]} 48. Rh1+ {[%clk 0:00:21]}  Kg7 {[%clk 0:00:05]} 49. Nxc6 {[%clk 0:00:18]}  Ng5+ {[%clk 0:00:05]} 50. Ke5 {[%clk 0:00:18]}  Re2+ {[%clk 0:00:04]} 51. Kf4 {[%clk 0:00:18]}  Nf7 {[%clk 0:00:04]} 52. Nd4 {[%clk 0:00:18]}  Ra2 {[%clk 0:00:04]} 53. Ne6+ {[%clk 0:00:18]}  Kf6 {[%clk 0:00:04]} 54. Re1 {[%clk 0:00:16]}  Rxa4+ {[%clk 0:00:04]} 55. Re4 {[%clk 0:00:15]}  Rxe4+ {[%clk 0:00:03]} 56. Kxe4 {[%clk 0:00:16]}  Ng5+ {[%clk 0:00:03]} 57. Nxg5 {[%clk 0:00:15]}  Kxg5 {[%clk 0:00:04]} 58. Ke5 {[%clk 0:00:15]}  a4 {[%clk 0:00:05]} 59. f6 {[%clk 0:00:16]}  a3 {[%clk 0:00:05]} 60. f7 {[%clk 0:00:16]}  a2 {[%clk 0:00:06]} 61. f8=Q {[%clk 0:00:17]}  a1=Q+ {[%clk 0:00:07]} 62. Kd5 {[%clk 0:00:17]}  Qd1+ {[%clk 0:00:07]} 63. Ke4 {[%clk 0:00:18]}  Qe2+ {[%clk 0:00:07]} 64. Kd4 {[%clk 0:00:18]}  Qd2+ {[%clk 0:00:07]} 65. Kc4 {[%clk 0:00:19]}  Qc2+ {[%clk 0:00:07]} 66. Kb5 {[%clk 0:00:19]}  Qb3+ {[%clk 0:00:04]} 67. Kc6 {[%clk 0:00:19]}  Qc4+ {[%clk 0:00:04]} 68. Kb6 {[%clk 0:00:19]}  Qd4+ {[%clk 0:00:04]} 69. Ka6 {[%clk 0:00:19]}  Qc4+ {[%clk 0:00:04]} 70. Kb6 {[%clk 0:00:20]}  Qd4+ {[%clk 0:00:04]} 71. Ka5 {[%clk 0:00:20]}  Qd5+ {[%clk 0:00:04]} 72. Ka4 {[%clk 0:00:20]}  Qd4+ {[%clk 0:00:05]} 73. Kb3 {[%clk 0:00:20]}  Qd3+ {[%clk 0:00:05]} 74. Kb4 {[%clk 0:00:21]}  Qd4+ {[%clk 0:00:05]} 75. Kb5 {[%clk 0:00:22]}  Qd5+ {[%clk 0:00:06]} 76. Kb6 {[%clk 0:00:22]}  Qd4+ {[%clk 0:00:06]} 1/2-1/2


[Site "https://www.chess.com"]

[Event "Titled Tuesday Blitz March 21 Early 2023"]
[White "TimGrutter03"]
[Black "Lwanga, Aguda"]
[BlackFideId "10801529"]
[WhiteElo "2545"]
[BlackElo "1475"]
[Result "1-0"]
[Round "07"]
[TimeControl "180+2"]
[Date "2023.03.21"]
[WhiteClock "0:02:12"]
[BlackClock "0:02:30"]

1. e4 {[%clk 0:02:53]}  e5 {[%clk 0:02:53]} 2. Nf3 {[%clk 0:02:52]}  Nc6 {[%clk 0:02:52]} 3. g3 {[%clk 0:02:40]}  Bc5 {[%clk 0:02:50]} 4. Bg2 {[%clk 0:02:40]}  Nf6 {[%clk 0:02:48]} 5. d3 {[%clk 0:02:32]}  d6 {[%clk 0:02:47]} 6. O-O {[%clk 0:02:31]}  O-O {[%clk 0:02:47]} 7. c3 {[%clk 0:02:31]}  a6 {[%clk 0:02:46]} 8. b4 {[%clk 0:02:29]}  Ba7 {[%clk 0:02:46]} 9. a4 {[%clk 0:02:30]}  Bg4 {[%clk 0:02:46]} 10. h3 {[%clk 0:02:29]}  Bd7 {[%clk 0:02:42]} 11. Qe2 {[%clk 0:02:26]}  h6 {[%clk 0:02:42]} 12. Nbd2 {[%clk 0:02:24]}  Nh7 {[%clk 0:02:41]} 13. Nc4 {[%clk 0:02:19]}  f5 {[%clk 0:02:40]} 14. exf5 {[%clk 0:02:19]}  Bxf5 {[%clk 0:02:40]} 15. Nh4 {[%clk 0:02:18]}  Be6 {[%clk 0:02:37]} 16. Be3 {[%clk 0:02:16]}  Bxc4 {[%clk 0:02:35]} 17. dxc4 {[%clk 0:02:12]}  Bxe3 {[%clk 0:02:34]} 18. Qxe3 {[%clk 0:02:13]}  Rb8 {[%clk 0:02:32]} 19. Bd5+ {[%clk 0:02:12]}  Kh8 {[%clk 0:02:30]} 20. Ng6# {[%clk 0:02:12]} 1-0


[Site "https://www.chess.com"]

[Event "Titled Tuesday Blitz March 21 Early 2023"]
[White "Hamitevici, Vladimir"]
[Black "Delorme, Alban"]
[WhiteFideId "13902393"]
[BlackFideId "623636"]
[WhiteElo "2401"]
[BlackElo "2196"]
[Result "1-0"]
[Round "07"]
[TimeControl "180+2"]
[Date "2023.03.21"]
[WhiteClock "0:01:31"]
[BlackClock "0:00:32"]

1. Nf3 {[%clk 0:03:00]}  Nf6 {[%clk 0:02:59]} 2. g3 {[%clk 0:03:00]}  g6 {[%clk 0:03:00]} 3. Bg2 {[%clk 0:02:59]}  Bg7 {[%clk 0:03:01]} 4. O-O {[%clk 0:03:00]}  O-O {[%clk 0:03:01]} 5. a4 {[%clk 0:03:01]}  d5 {[%clk 0:03:00]} 6. a5 {[%clk 0:03:01]}  c5 {[%clk 0:02:56]} 7. c3 {[%clk 0:03:02]}  Nc6 {[%clk 0:02:56]} 8. Qa4 {[%clk 0:03:02]}  e5 {[%clk 0:02:49]} 9. d3 {[%clk 0:02:59]}  Re8 {[%clk 0:02:39]} 10. a6 {[%clk 0:02:56]}  Qc7 {[%clk 0:02:32]} 11. axb7 {[%clk 0:02:54]}  Bxb7 {[%clk 0:02:32]} 12. Bg5 {[%clk 0:02:52]}  e4 {[%clk 0:02:29]} 13. dxe4 {[%clk 0:02:47]}  Nxe4 {[%clk 0:02:28]} 14. Bf4 {[%clk 0:02:45]}  Qd7 {[%clk 0:02:29]} 15. Rd1 {[%clk 0:02:43]}  Rad8 {[%clk 0:02:14]} 16. Nbd2 {[%clk 0:02:31]}  Nxd2 {[%clk 0:01:56]} 17. Rxd2 {[%clk 0:02:32]}  a6 {[%clk 0:01:39]} 18. h4 {[%clk 0:02:21]}  d4 {[%clk 0:01:26]} 19. cxd4 {[%clk 0:02:06]}  Nxd4 {[%clk 0:01:22]} 20. Nxd4 {[%clk 0:02:01]}  Qxa4 {[%clk 0:01:13]} 21. Rxa4 {[%clk 0:02:00]}  Bxg2 {[%clk 0:01:13]} 22. Kxg2 {[%clk 0:01:59]}  Rxd4 {[%clk 0:01:09]} 23. Rdxd4 {[%clk 0:01:37]}  Bxd4 {[%clk 0:01:08]} 24. e3 {[%clk 0:01:37]}  Bxb2 {[%clk 0:01:06]} 25. Rxa6 {[%clk 0:01:38]}  c4 {[%clk 0:01:01]} 26. Rc6 {[%clk 0:01:33]}  c3 {[%clk 0:00:57]} 27. Bg5 {[%clk 0:01:34]}  h5 {[%clk 0:00:40]} 28. Bf6 {[%clk 0:01:32]}  Re6 {[%clk 0:00:38]} 29. Rc8+ {[%clk 0:01:32]}  Re8 {[%clk 0:00:32]} 30. Rxe8+ {[%clk 0:01:31]} 1-0


[Site "https://www.chess.com"]

[Event "Titled Tuesday Blitz March 21 Early 2023"]
[White "Golubev, Mikhail"]
[Black "Darini, Pouria"]
[WhiteFideId "14100983"]
[BlackFideId "12502200"]
[WhiteElo "2374"]
[BlackElo "2482"]
[Result "0-1"]
[Round "07"]
[TimeControl "180+2"]
[Date "2023.03.21"]
[WhiteClock "0:00:01"]
[BlackClock "0:00:36"]

1. e4 {[%clk 0:03:00]}  c5 {[%clk 0:03:00]} 2. Nf3 {[%clk 0:03:00]}  Nc6 {[%clk 0:03:01]} 3. Nc3 {[%clk 0:02:58]}  d6 {[%clk 0:03:00]} 4. d4 {[%clk 0:02:58]}  cxd4 {[%clk 0:03:01]} 5. Nxd4 {[%clk 0:02:58]}  Nf6 {[%clk 0:03:02]} 6. Bc4 {[%clk 0:02:58]}  e6 {[%clk 0:03:02]} 7. Be3 {[%clk 0:02:58]}  a6 {[%clk 0:03:01]} 8. Bb3 {[%clk 0:02:57]}  Bd7 {[%clk 0:03:01]} 9. f4 {[%clk 0:02:56]}  b5 {[%clk 0:02:54]} 10. f5 {[%clk 0:02:50]}  Na5 {[%clk 0:02:44]} 11. fxe6 {[%clk 0:02:47]}  fxe6 {[%clk 0:02:45]} 12. Bxe6 {[%clk 0:02:30]}  Nc4 {[%clk 0:02:36]} 13. Bxd7+ {[%clk 0:02:07]}  Qxd7 {[%clk 0:02:36]} 14. Bc1 {[%clk 0:02:05]}  d5 {[%clk 0:02:04]} 15. Nxd5 {[%clk 0:02:03]}  Nxd5 {[%clk 0:02:04]} 16. exd5 {[%clk 0:02:03]}  Bc5 {[%clk 0:01:50]} 17. O-O {[%clk 0:01:55]}  Qxd5 {[%clk 0:01:48]} 18. Re1+ {[%clk 0:01:36]}  Kf7 {[%clk 0:01:37]} 19. Rf1+ {[%clk 0:01:26]}  Kg8 {[%clk 0:01:23]} 20. c3 {[%clk 0:01:23]}  Rd8 {[%clk 0:01:24]} 21. b3 {[%clk 0:01:14]}  Nd6 {[%clk 0:01:17]} 22. Be3 {[%clk 0:00:51]}  h6 {[%clk 0:01:14]} 23. Qd3 {[%clk 0:00:44]}  Qe4 {[%clk 0:01:15]} 24. Rad1 {[%clk 0:00:32]}  Kh7 {[%clk 0:01:15]} 25. Rf4 {[%clk 0:00:20]}  Qxd3 {[%clk 0:01:11]} 26. Rxd3 {[%clk 0:00:21]}  Rhe8 {[%clk 0:01:11]} 27. g3 {[%clk 0:00:15]}  Ne4 {[%clk 0:01:12]} 28. Kg2 {[%clk 0:00:12]}  Bb6 {[%clk 0:01:06]} 29. Rf3 {[%clk 0:00:10]}  b4 {[%clk 0:00:39]} 30. cxb4 {[%clk 0:00:08]}  Nf6 {[%clk 0:00:39]} 31. Bg1 {[%clk 0:00:07]}  Re1 {[%clk 0:00:37]} 32. Bf2 {[%clk 0:00:03]}  Ra1 {[%clk 0:00:36]} 33. Nf5 {[%clk 0:00:03]}  Rxd3 {[%clk 0:00:35]} 34. Rxd3 {[%clk 0:00:01]}  Rxa2 {[%clk 0:00:36]} 35. Rf3 {[%clk 0:00:01]}  Ng4 {[%clk 0:00:36]} 36. Rf4 {[%clk 0:00:01]}  Nxf2 {[%clk 0:00:36]} 0-1


[Site "https://www.chess.com"]

[Event "Titled Tuesday Blitz March 21 Early 2023"]
[White "Aggelis, Nikolaos"]
[Black "Belov, Alexei"]
[WhiteFideId "4213220"]
[BlackFideId "4128206"]
[WhiteElo "2189"]
[BlackElo "2487"]
[Result "1-0"]
[Round "07"]
[TimeControl "180+2"]
[Date "2023.03.21"]
[WhiteClock "0:00:15"]
[BlackClock "0:00:02"]

1. d4 {[%clk 0:02:52]}  e6 {[%clk 0:03:00]} 2. g3 {[%clk 0:02:53]}  Nf6 {[%clk 0:02:59]} 3. Bg2 {[%clk 0:02:54]}  d5 {[%clk 0:03:00]} 4. Nf3 {[%clk 0:02:55]}  Be7 {[%clk 0:03:01]} 5. O-O {[%clk 0:02:55]}  O-O {[%clk 0:03:01]} 6. c4 {[%clk 0:02:56]}  dxc4 {[%clk 0:03:02]} 7. Qc2 {[%clk 0:02:55]}  a6 {[%clk 0:03:02]} 8. a4 {[%clk 0:02:55]}  Bd7 {[%clk 0:03:02]} 9. Qxc4 {[%clk 0:02:55]}  Bc6 {[%clk 0:03:02]} 10. Bf4 {[%clk 0:02:55]}  Nbd7 {[%clk 0:03:02]} 11. Nc3 {[%clk 0:02:51]}  Nb6 {[%clk 0:03:02]} 12. Qd3 {[%clk 0:02:50]}  Nbd5 {[%clk 0:03:02]} 13. Rfe1 {[%clk 0:02:45]}  Nxc3 {[%clk 0:02:58]} 14. bxc3 {[%clk 0:02:43]}  Be4 {[%clk 0:02:57]} 15. Qc4 {[%clk 0:02:39]}  Nd5 {[%clk 0:02:46]} 16. Ne5 {[%clk 0:02:31]}  Bxg2 {[%clk 0:02:35]} 17. Kxg2 {[%clk 0:02:32]}  c5 {[%clk 0:02:23]} 18. Red1 {[%clk 0:02:15]}  Rc8 {[%clk 0:02:17]} 19. Qb3 {[%clk 0:02:15]}  cxd4 {[%clk 0:02:16]} 20. cxd4 {[%clk 0:02:15]}  Rc7 {[%clk 0:01:54]} 21. a5 {[%clk 0:02:08]}  Bd6 {[%clk 0:01:44]} 22. Qf3 {[%clk 0:01:36]}  f6 {[%clk 0:01:36]} 23. Nd3 {[%clk 0:01:32]}  Nc3 {[%clk 0:01:21]} 24. Rdc1 {[%clk 0:01:27]}  e5 {[%clk 0:01:11]} 25. dxe5 {[%clk 0:01:23]}  fxe5 {[%clk 0:01:11]} 26. Rxc3 {[%clk 0:01:02]}  Rxc3 {[%clk 0:01:04]} 27. Qd5+ {[%clk 0:01:03]}  Kh8 {[%clk 0:01:03]} 28. Nxe5 {[%clk 0:00:56]}  Bxe5 {[%clk 0:00:56]} 29. Qxe5 {[%clk 0:00:56]}  Rc2 {[%clk 0:00:51]} 30. Rb1 {[%clk 0:00:52]}  Qd7 {[%clk 0:00:48]} 31. Qe4 {[%clk 0:00:50]}  Qc6 {[%clk 0:00:34]} 32. Qxc6 {[%clk 0:00:50]}  bxc6 {[%clk 0:00:34]} 33. Rb6 {[%clk 0:00:47]}  Ra8 {[%clk 0:00:32]} 34. Rb7 {[%clk 0:00:32]}  Rc5 {[%clk 0:00:29]} 35. Bc7 {[%clk 0:00:27]}  h6 {[%clk 0:00:23]} 36. Bb6 {[%clk 0:00:27]}  Rc4 {[%clk 0:00:20]} 37. e3 {[%clk 0:00:26]}  Rg4 {[%clk 0:00:06]} 38. Rc7 {[%clk 0:00:23]}  Rg6 {[%clk 0:00:06]} 39. h4 {[%clk 0:00:22]}  h5 {[%clk 0:00:06]} 40. e4 {[%clk 0:00:20]}  Re8 {[%clk 0:00:05]} 41. Ra7 {[%clk 0:00:17]}  Rxe4 {[%clk 0:00:04]} 42. Rxa6 {[%clk 0:00:18]}  c5 {[%clk 0:00:03]} 43. Ra7 {[%clk 0:00:17]}  Kh7 {[%clk 0:00:03]} 44. Rc7 {[%clk 0:00:18]}  c4 {[%clk 0:00:03]} 45. Rc5 {[%clk 0:00:16]}  Rf6 {[%clk 0:00:01]} 46. Rxh5+ {[%clk 0:00:16]}  Kg8 {[%clk 0:00:01]} 47. Rc5 {[%clk 0:00:17]}  Re2 {[%clk 0:00:01]} 48. Rxc4 {[%clk 0:00:15]}  Ra2 {[%clk 0:00:02]} 49. Rc7 {[%clk 0:00:15]} 1-0


[Site "https://www.chess.com"]

[Event "Titled Tuesday Blitz March 21 Early 2023"]
[White "Fromm, Marius"]
[Black "Dudzinski, Pawel"]
[WhiteFideId "12993190"]
[BlackFideId "1117890"]
[WhiteElo "2325"]
[BlackElo "2099"]
[Result "0-1"]
[Round "07"]
[TimeControl "180+2"]
[Date "2023.03.21"]
[WhiteClock "0:00:26"]
[BlackClock "0:00:26"]

1. e4 {[%clk 0:03:00]}  c6 {[%clk 0:03:00]} 2. d4 {[%clk 0:03:00]}  d5 {[%clk 0:03:00]} 3. exd5 {[%clk 0:03:01]}  cxd5 {[%clk 0:03:01]} 4. Bd3 {[%clk 0:03:02]}  Nc6 {[%clk 0:03:01]} 5. c3 {[%clk 0:03:02]}  g6 {[%clk 0:03:00]} 6. Nf3 {[%clk 0:03:02]}  Bg7 {[%clk 0:03:01]} 7. O-O {[%clk 0:03:02]}  Nf6 {[%clk 0:03:01]} 8. Re1 {[%clk 0:03:02]}  Bf5 {[%clk 0:03:02]} 9. Bf1 {[%clk 0:03:03]}  O-O {[%clk 0:03:02]} 10. Bf4 {[%clk 0:03:03]}  a6 {[%clk 0:03:01]} 11. Nbd2 {[%clk 0:03:04]}  b5 {[%clk 0:03:02]} 12. h3 {[%clk 0:02:59]}  b4 {[%clk 0:02:58]} 13. Ne5 {[%clk 0:02:54]}  Nxe5 {[%clk 0:02:51]} 14. dxe5 {[%clk 0:02:53]}  Nd7 {[%clk 0:02:23]} 15. cxb4 {[%clk 0:02:52]}  Qb8 {[%clk 0:02:22]} 16. a3 {[%clk 0:01:48]}  Bxe5 {[%clk 0:02:17]} 17. Bh6 {[%clk 0:01:48]}  Re8 {[%clk 0:02:14]} 18. Nf3 {[%clk 0:01:47]}  Bxb2 {[%clk 0:02:12]} 19. Qxd5 {[%clk 0:01:44]}  Nf6 {[%clk 0:01:57]} 20. Qa2 {[%clk 0:01:37]}  Bxa1 {[%clk 0:01:43]} 21. Qxa1 {[%clk 0:01:37]}  Qd6 {[%clk 0:01:17]} 22. Ne5 {[%clk 0:01:28]}  Nd5 {[%clk 0:01:01]} 23. Nxf7 {[%clk 0:01:18]}  Qf6 {[%clk 0:00:54]} 24. Ne5 {[%clk 0:01:18]}  g5 {[%clk 0:00:52]} 25. Bc4 {[%clk 0:00:37]}  e6 {[%clk 0:00:52]} 26. Ng4 {[%clk 0:00:37]}  Bxg4 {[%clk 0:00:46]} 27. Qxf6 {[%clk 0:00:36]}  Nxf6 {[%clk 0:00:46]} 28. hxg4 {[%clk 0:00:37]}  Kf7 {[%clk 0:00:32]} 29. f3 {[%clk 0:00:37]}  Kg6 {[%clk 0:00:29]} 30. Bxg5 {[%clk 0:00:26]}  Kxg5 {[%clk 0:00:30]} 31. Bxe6 {[%clk 0:00:26]}  Kh6 {[%clk 0:00:27]} 32. f4 {[%clk 0:00:26]}  Nxg4 {[%clk 0:00:26]} 0-1


[Site "https://www.chess.com"]